bitfinex/quotes_ETHUSD_20251107
["timestamp","ask_amount","ask_price","bid_price","bid_amount"]
[1762546656434,6.36145413,3446.7,3444.8,0.4681]
[1762546656635,2.9016419,3446.4,3445.2,0.1898]
[1762546656799,1.259712,3446.3,3445.2,0.1898]
[1762546656995,0.41833203,3446.2,3445.2,0.1898]
[1762546657223,0.4942,3446.2,3445.1,0.1898]
[1762546657433,0.002,3446.2,3445.1,0.6579]
[1762546657632,0.002,3446.2,3445.1,0.1898]
[1762546657832,0.002,3446.2,3445.6,2.90224159]
[1762546658223,0.002,3446.2,3445.6,2.90222797]
[1762546658835,1.261712,3446.2,3445.5,2.90232931]
[1762546659135,1.261712,3446.2,3444.7,0.4691]
[1762546659136,1.259712,3445.8,3444.7,0.4691]
[1762546659308,0.74530775,3446.2,3445.4,2.90235726]
[1762546659510,0.002,3446.2,3446.1,2.90183105]
[1762546659725,0.002,3446.2,3446.1,3.55903105]
[1762546659927,0.002,3446.2,3446.1,4.02713105]
[1762546660233,0.002,3446.2,3445.7,2.90212192]
[1762546660234,0.002,3446.2,3445.7,0.4681]
[1762546660435,0.002,3446.2,3446.1,3.36923105]
[1762546660622,0.002,3446.2,3446.1,0.4674]
[1762546660828,0.002,3446.2,3445.7,2.90216791]
[1762546661016,0.002,3446.2,3445.9,2.90199947]
[1762546661017,0.1448,3446.0,3445.9,2.90199947]
[1762546661339,0.4969,3446.2,3445.3,0.1883]
[1762546661524,0.002,3446.2,3445.7,2.9021392]
[1762546661705,0.002,3446.2,3446.0,2.90186643]
[1762546661909,0.002,3446.2,3446.1,2.90183105]
[1762546662106,0.002,3446.2,3446.1,3.36633105]
[1762546662372,0.002,3446.2,3446.1,3.84113105]
[1762546663326,0.002,3446.2,3446.1,2.90183105]
[1762546663524,0.002,3446.2,3445.7,0.76501392]
[1762546663712,0.002,3446.2,3446.1,2.90183105]
[1762546663913,0.002,3446.2,3445.8,2.90208369]
[1762546664137,0.002,3446.2,3446.0,2.90184166]
[1762546664441,0.002,3446.2,3446.1,2.90183105]
[1762546665154,0.002,3446.2,3445.9,2.90192528]
[1762546665155,0.002,3446.2,3446.0,2.90189333]
[1762546665352,0.002,3446.2,3445.7,2.90210217]
[1762546665552,0.4949,3446.1,3445.6,2.90223433]
[1762546666121,0.4949,3446.1,3445.5,2.90230099]
[1762546666321,0.4949,3446.1,3445.5,2.90232441]
[1762546666522,0.29235928,3446.2,3445.8,2.90207648]
[1762546666722,0.002,3446.2,3445.7,2.90213556]
[1762546666953,0.002,3446.2,3445.8,2.90203235]
[1762546667354,0.002,3446.2,3445.4,0.4748]
[1762546667529,0.002,3446.2,3446.1,2.90183105]
[1762546667852,0.002,3446.2,3446.1,3.36633105]
[1762546668283,0.002,3446.2,3446.1,2.90183105]
[1762546668951,0.002,3446.2,3446.1,3.84113105]
[1762546671329,0.002,3446.2,3446.1,0.9393]
[1762546671547,0.002,3446.2,3445.3,0.1883]
[1762546671548,0.002,3446.2,3445.5,0.4748]
[1762546671749,0.002,3446.2,3446.1,3.36633105]
[1762546672064,0.002,3446.2,3445.5,0.4748]
[1762546672268,0.002,3446.2,3446.1,2.90183105]
[1762546672655,0.002,3446.2,3445.5,0.4748]
[1762546672840,0.002,3446.2,3445.6,0.4748]
[1762546673037,0.002,3446.2,3445.9,2.90191622]
[1762546673243,0.002,3446.2,3445.6,0.4748]
[1762546673559,0.002,3446.2,3445.7,0.4748]
[1762546673761,0.002,3446.2,3445.9,2.9019419]
[1762546673935,0.002,3446.2,3446.1,2.90183105]
[1762546674134,0.002,3446.2,3446.1,3.36633105]
[1762546674371,0.002,3446.2,3445.1,0.001]
[1762546674571,0.002,3446.2,3446.0,2.90184611]
[1762546674767,0.002,3446.2,3446.1,2.90183105]
[1762546674966,0.002,3446.2,3446.1,3.84113105]
[1762546675553,0.002,3446.2,3446.1,3.36633105]
[1762546675949,0.002,3446.2,3446.1,3.84113105]
[1762546681284,0.002,3446.2,3446.1,2.90183105]
[1762546681776,0.002,3446.2,3446.1,3.84113105]
[1762546681949,0.002,3446.2,3446.1,3.04663105]
[1762546682145,0.002,3446.2,3445.8,1.259712]
[1762546682353,0.002,3446.2,3446.1,2.90183105]
[1762546683058,0.5514,3446.2,3446.0,2.90185702]
[1762546683384,0.39155356,3446.1,3445.1,0.186]
[1762546683568,0.002,3446.2,3445.9,2.90197401]
[1762546683756,0.002,3446.2,3445.9,2.90199947]
[1762546683958,0.4891,3446.0,3445.8,2.90202782]
[1762546684157,0.4891,3446.0,3445.6,2.90218805]
[1762546684470,0.4891,3446.0,3445.1,0.001]
[1762546684471,0.1828,3445.9,3445.1,0.001]
[1762546684782,0.2438,3445.9,3445.8,2.90208369]
[1762546685081,0.2438,3445.9,3445.1,0.001]
[1762546685082,0.7286,3445.9,3445.1,0.001]
[1762546685282,0.0653,3445.8,3445.1,0.001]
[1762546685874,0.1828,3445.9,3445.8,2.90208369]
[1762546686373,0.7287,3445.9,3445.1,0.001]
[1762546686569,0.0048,3445.7,3445.6,2.90225214]
[1762546686981,0.1828,3445.9,3445.8,2.90208369]
[1762546687517,0.7287,3445.9,3445.1,0.186]
[1762546687818,0.7287,3445.9,3445.8,2.90208369]
[1762546687980,0.7287,3445.9,3445.7,2.9021591]
[1762546688342,0.7287,3445.9,3445.1,3.08863317]
[1762546688343,0.7287,3445.9,3445.1,0.001]
[1762546688546,0.0048,3445.2,3445.1,0.001]
[1762546688695,2.9073891,3445.2,3445.1,0.001]
[1762546688894,1.06768857,3445.2,3445.1,0.001]
[1762546689240,0.58578857,3445.2,3445.1,0.001]
[1762546689401,0.0048,3445.2,3445.1,0.001]
[1762546689804,0.4867,3445.2,3445.1,0.001]
[1762546690029,0.0048,3445.2,3445.1,0.001]
[1762546690229,0.4819,3445.8,3445.1,0.001]
[1762546690445,0.1828,3445.9,3445.1,0.186]
[1762546690744,0.1828,3445.9,3445.6,2.90219038]
[1762546690945,0.1828,3445.9,3445.1,0.186]
[1762546691101,0.4819,3445.8,3445.1,0.001]
[1762546691295,0.0682,3445.2,3445.1,0.001]
[1762546691523,0.4819,3445.8,3445.1,0.001]
[1762546691726,0.0682,3445.2,3445.1,0.001]
[1762546692106,0.5459,3445.2,3445.1,0.001]
[1762546692306,0.0682,3445.2,3445.1,0.001]
[1762546693449,0.0682,3445.2,3445.1,2.90367336]
[1762546693631,1.19823014,3445.7,3445.1,0.001]
[1762546693818,0.91813436,3445.6,3445.1,0.001]
[1762546694135,2.65974636,3445.6,3445.1,0.001]
[1762546694335,0.0682,3445.2,3445.1,0.001]
[1762546694907,0.1828,3445.9,3445.1,0.6389]
[1762546695103,0.4819,3446.5,3445.1,1.2744]
[1762546695337,0.1448,3446.0,3445.7,2.9021173]
[1762546695642,0.4819,3446.4,3445.2,0.4907]
[1762546695938,0.002,3446.6,3446.0,2.90186115]
[1762546696126,0.002,3446.6,3445.5,2.90233638]
[1762546696327,0.002,3446.6,3445.5,0.4907]
[1762546696838,3.38342903,3446.5,3445.7,2.90216734]
[1762546697039,2.90163943,3446.4,3445.7,2.90216734]
[1762546697246,2.90163943,3446.4,3445.8,2.90205757]
[1762546697447,0.4819,3446.5,3445.1,1.936412]
[1762546697742,0.002,3446.6,3446.1,2.90183105]
[1762546697952,0.002,3446.6,3446.0,2.90187822]
[1762546698156,0.002,3446.6,3446.1,2.90183105]
[1762546698763,0.0702,3446.2,3445.2,0.4907]
[1762546698968,0.0702,3446.2,3445.6,2.90224732]
[1762546699289,2.90188491,3446.1,3445.4,2.90236312]
[1762546699444,2.90199405,3446.0,3445.3,2.90245775]
[1762546699646,0.6647,3445.9,3445.1,0.186]
[1762546699888,0.34695067,3446.2,3446.0,2.90184169]
[1762546700068,0.002,3446.2,3445.9,2.90197791]
[1762546700588,0.002,3446.2,3445.2,0.4907]
[1762546700941,0.002,3446.2,3445.2,3.39324955]
[1762546701135,0.002,3446.2,3445.2,0.4907]
[1762546701337,0.002,3446.2,3445.3,2.90250486]
[1762546701537,0.002,3446.2,3445.1,3.08862199]
[1762546701739,3.1535891,3445.2,3445.1,0.001]
[1762546702056,8.90399651,3445.2,3445.1,0.001]
[1762546702268,1.988412,3445.2,3445.1,0.001]
[1762546702474,1.510712,3445.2,3445.1,0.001]
[1762546702872,0.1828,3445.5,3445.1,0.001]
[1762546703198,0.0682,3445.2,3445.1,0.001]
[1762546703360,2.9707891,3445.2,3445.1,0.001]
[1762546703557,0.72157214,3445.2,3445.1,0.001]
[1762546703768,4.10186124,3445.2,3445.1,0.001]
[1762546703969,5.36157324,3445.2,3445.1,0.001]
[1762546704460,4.10186124,3445.2,3445.1,0.001]
[1762546704769,5.76707724,3445.2,3445.1,0.001]
[1762546705166,4.56814214,3444.8,3444.7,0.001]
[1762546705481,4.56814214,3444.8,3444.1,0.00100001]
[1762546705482,3.30893585,3444.2,3444.1,0.00100001]
[1762546705808,11.11454926,3444.2,3444.1,0.00100001]
[1762546705962,11.59644926,3444.2,3444.1,0.00100001]
[1762546706356,11.19094526,3444.2,3444.1,0.00100001]
[1762546706580,12.31003979,3444.2,3444.1,0.00100001]
[1762546706782,12.71554379,3444.2,3444.1,0.00100001]
[1762546706992,13.12618328,3444.2,3444.1,0.00100001]
[1762546709095,13.12601661,3444.2,3444.1,0.00100001]
[1762546709461,12.71554379,3444.2,3444.1,0.00100001]
[1762546709876,13.12601661,3444.2,3444.1,0.00100001]
[1762546710202,4.56898509,3443.8,3443.7,0.001]
[1762546710416,2.90402207,3443.5,3443.4,0.001]
[1762546710583,9.45492348,3443.5,3443.4,0.001]
[1762546710765,11.99721359,3443.5,3443.4,0.001]
[1762546710960,11.99704692,3443.5,3443.4,0.001]
[1762546711562,8.69801741,3443.5,3443.4,0.001]
[1762546711789,12.59375279,3443.5,3443.4,0.001]
[1762546712204,6.05315138,3443.5,3443.4,0.001]
[1762546712565,3.14912931,3443.5,3443.4,0.001]
[1762546712764,6.42166376,3443.5,3443.4,0.001]
[1762546712982,2.63023769,3443.5,3443.4,0.001]
[1762546713183,1.259712,3443.5,3443.4,0.001]
[1762546713390,0.1828,3443.9,3443.4,0.001]
[1762546713603,0.4805,3443.8,3443.4,0.001]
[1762546713805,0.0722,3443.5,3443.4,0.001]
[1762546714815,0.1828,3443.9,3443.4,0.4723]
[1762546715120,0.1839,3444.1,3443.4,3.86024518]
[1762546715476,0.1839,3444.1,3443.4,0.9562]
[1762546715701,0.1828,3445.5,3444.3,2.90329285]
[1762546715702,1.13387214,3445.2,3444.3,2.90329285]
[1762546715903,0.1448,3444.3,3443.7,0.1448]
[1762546716104,0.1448,3443.7,3443.4,0.001]
[1762546716515,2.90357697,3444.1,3443.4,0.001]
[1762546716814,2.90380058,3443.8,3443.4,0.001]
[1762546717024,2.90369165,3443.9,3443.4,0.001]
[1762546717223,0.29036916,3443.8,3443.4,0.001]
[1762546717379,0.77086916,3443.8,3443.4,0.001]
[1762546717700,2.9036127,3444.0,3443.4,0.001]
[1762546717880,0.405504,3444.1,3443.4,0.001]
[1762546718076,2.9038499,3443.8,3443.4,0.001]
[1762546718280,0.405504,3444.0,3443.4,0.001]
[1762546718705,1.259712,3443.9,3443.4,0.001]
[1762546718905,0.79527932,3443.9,3443.4,2.90508577]
[1762546719103,0.79527932,3443.9,3443.4,0.001]
[1762546719379,1.259712,3443.8,3443.4,0.001]
[1762546719604,0.405504,3444.1,3443.4,2.90504526]
[1762546719819,2.90367381,3444.0,3443.4,0.001]
[1762546720030,2.90368673,3443.9,3443.4,0.001]
[1762546720187,3.30902302,3444.1,3443.4,0.001]
[1762546720188,2.90362112,3444.0,3443.4,0.001]
[1762546720515,0.79527702,3443.9,3443.4,0.001]
[1762546720702,4.63803807,3443.5,3443.4,0.001]
[1762546720904,5.02813424,3443.5,3443.4,0.001]
[1762546721091,5.50453424,3443.5,3443.4,0.001]
[1762546721491,5.11443807,3443.5,3443.4,0.001]
[1762546722188,5.43203068,3443.5,3443.4,0.001]
[1762546722389,7.85827954,3443.5,3443.4,0.001]
[1762546722590,7.54068693,3443.5,3443.4,0.001]
[1762546722982,7.85431499,3443.5,3443.4,0.001]
[1762546724026,7.85431499,3443.5,3443.1,1e-08]
[1762546724185,2.90486564,3442.5,3441.9,0.001]
[1762546724386,4.57948164,3442.5,3441.9,0.001]
[1762546724819,1.674616,3442.5,3441.9,0.001]
[1762546725022,4.57948164,3442.5,3441.9,0.001]
[1762546725220,5.07498164,3442.5,3441.9,0.001]
[1762546725544,6.25422663,3442.5,3441.9,0.001]
[1762546725735,5.8729504,3442.5,3441.9,0.001]
[1762546726406,2.05768076,3442.5,3442.1,0.1865]
[1762546726583,1.259712,3442.5,3442.1,0.1865]
[1762546726786,1.259712,3442.5,3442.4,0.4576]
[1762546727232,1.259712,3442.5,3442.4,0.001]
[1762546727523,3.30998047,3443.0,3442.4,0.001]
[1762546727524,3.30995499,3443.0,3442.4,0.001]
[1762546727687,2.90461584,3442.8,3442.4,0.001]
[1762546727889,3.78806964,3442.5,3442.4,0.001]
[1762546728106,1.259712,3442.5,3442.4,0.001]
[1762546729312,1.259712,3442.5,3442.4,0.4576]
[1762546729516,1.259712,3442.5,3442.4,0.001]
[1762546729684,4.16457764,3442.5,3442.4,0.001]
[1762546730142,1.259712,3442.5,3442.4,0.001]
[1762546730502,1.67848823,3442.5,3442.4,0.001]
[1762546731218,1.259712,3442.5,3442.4,0.001]
[1762546731419,4.16457764,3442.5,3442.4,0.001]
[1762546731620,1.259712,3442.5,3442.4,0.001]
[1762546731820,4.16457764,3442.5,3442.4,0.001]
[1762546732025,1.67848823,3442.5,3442.4,0.001]
[1762546732733,4.66859473,3442.5,3442.4,0.001]
[1762546733131,1.76372909,3442.5,3442.4,0.001]
[1762546733436,4.66859473,3442.5,3442.4,0.001]
[1762546734604,1.76372909,3442.5,3442.4,0.001]
[1762546734803,1.76372909,3442.5,3442.4,0.4576]
[1762546735102,1.259712,3442.5,3442.4,0.4576]
[1762546735602,1.67848823,3442.5,3442.4,0.4576]
[1762546735852,4.21857764,3442.5,3442.4,0.001]
[1762546736252,5.11518164,3442.5,3442.4,0.001]
[1762546736549,5.46699912,3442.5,3442.4,0.001]
[1762546737907,2.10262948,3442.5,3442.4,0.001]
[1762546738218,1.259712,3442.5,3442.4,0.4576]
[1762546738561,4.21857764,3442.5,3442.4,0.001]
[1762546738707,5.11518164,3442.5,3442.4,0.001]
[1762546739041,5.50634008,3442.5,3442.4,0.001]
[1762546739226,1.719216,3442.5,3442.4,0.001]
[1762546739429,2.12781517,3442.5,3442.4,0.001]
[1762546739628,1.665216,3442.5,3442.4,0.001]
[1762546739866,1.259712,3442.5,3442.4,0.001]
[1762546740140,1.65087044,3442.5,3442.4,0.001]
[1762546740350,1.65087044,3442.5,3442.4,0.4576]
[1762546740761,0.002,3442.7,3442.4,0.4576]
[1762546740923,0.002,3442.7,3442.6,0.4566]
[1762546741248,0.002,3442.7,3442.4,0.001]
[1762546741637,2.90485279,3442.6,3442.4,0.001]
[1762546741849,0.002,3442.7,3442.4,0.4638]
[1762546742009,0.002,3442.7,3442.4,0.001]
[1762546742621,3.36436964,3442.5,3442.4,0.001]
[1762546742828,4.62408164,3442.5,3442.4,0.001]
[1762546743027,5.49009481,3442.5,3442.4,0.001]
[1762546743417,5.4612221,3442.5,3442.4,0.001]
[1762546743649,6.97046931,3442.5,3442.4,0.001]
[1762546743856,6.58982885,3442.5,3442.4,0.001]
[1762546744039,6.97046931,3442.5,3442.4,0.001]
[1762546744371,6.58982885,3442.5,3442.4,0.001]
[1762546745078,6.97046931,3442.5,3442.4,0.001]
[1762546745278,6.58982885,3442.5,3442.4,0.001]
[1762546746276,2.90511881,3442.2,3442.1,0.006]
[1762546746477,6.34399622,3442.2,3442.1,0.006]
[1762546748177,6.34399622,3442.2,3439.2,0.4728]
[1762546748178,0.0408,3441.2,3439.2,0.4728]
[1762546748477,3.27675755,3441.1,3440.2,0.4728]
[1762546748681,1.59146775,3441.0,3440.2,0.4728]
[1762546748881,1.259712,3440.5,3440.2,0.4728]
[1762546749080,0.37063696,3441.3,3440.2,0.4728]
[1762546749081,1.259712,3441.0,3440.2,0.4728]
[1762546749282,2.90630769,3440.8,3440.5,0.4819]
[1762546749480,4.1661818,3440.6,3440.5,0.4819]
[1762546749684,3.05135427,3440.5,3440.1,0.1994]
[1762546749985,1.259712,3440.6,3440.1,0.005]
[1762546749986,2.90680774,3440.2,3440.1,0.005]
[1762546750153,4.66462374,3440.2,3440.1,0.005]
[1762546750346,3.05217471,3439.8,3439.0,3.57501319]
[1762546750550,0.145,3439.8,3439.0,0.6672]
[1762546751048,2.90726311,3439.7,3439.1,0.4778]
[1762546751249,0.405504,3439.5,3439.1,0.005]
[1762546751451,0.40938696,3439.6,3439.1,0.005]
[1762546751683,0.145,3439.8,3439.5,0.4819]
[1762546751883,0.145,3439.8,3439.7,0.4819]
[1762546752654,0.145,3439.8,3439.7,3.86193028]
[1762546753264,0.145,3439.8,3439.7,0.9547]
[1762546753468,1.259712,3439.4,3439.1,0.005]
[1762546753668,2.90765294,3439.2,3439.1,0.005]
[1762546753865,4.16736494,3439.2,3439.1,0.005]
[1762546754277,1.352312,3439.2,3439.1,0.005]
[1762546754480,4.25996494,3439.2,3439.1,0.005]
[1762546754680,4.66546894,3439.2,3439.1,0.005]
[1762546754918,5.92317375,3439.2,3439.1,0.005]
[1762546755595,3.01552081,3439.2,3439.1,0.005]
[1762546755898,0.40938696,3439.6,3439.1,1.1541]
[1762546756195,0.40938696,3439.6,3439.3,0.4819]
[1762546756698,0.40938696,3439.6,3439.5,0.4819]
[1762546756894,1.259712,3440.5,3439.5,0.4819]
[1762546757095,0.7643838,3440.4,3439.5,3.86204162]
[1762546757283,0.7643838,3440.4,3439.5,0.9547]
[1762546757598,0.7643838,3440.4,3439.7,2.90716589]
[1762546757599,1.259712,3440.3,3439.7,2.90716589]
[1762546757894,9.29026528,3441.0,3439.8,0.4728]
[1762546757895,6.38412602,3441.0,3439.8,0.4728]
[1762546758096,0.8734578,3441.3,3440.3,0.1944]
[1762546758271,0.1812,3441.8,3440.9,0.4819]
[1762546758471,1.8130414,3441.8,3440.9,0.4819]
[1762546758696,2.90595788,3441.3,3440.4,0.4728]
[1762546758872,1.259712,3441.5,3440.8,2.90624911]
[1762546759206,1.259712,3441.3,3440.7,2.90632932]
[1762546759410,4.16545222,3441.5,3440.8,2.9062613]
[1762546759609,0.41654522,3441.4,3440.9,2.9062099]
[1762546759826,0.3721294,3441.8,3440.9,0.4728]
[1762546760031,0.1448,3440.9,3440.8,0.4728]
[1762546760625,0.1448,3440.9,3440.8,3.86100086]
[1762546760793,0.1448,3440.9,3440.8,0.4819]
[1762546761194,0.1448,3440.9,3440.5,0.4728]
[1762546761518,0.1448,3440.9,3440.8,3.38820086]
[1762546761832,0.005,3441.9,3441.3,2.9058327]
[1762546761977,0.005,3441.9,3441.8,0.4819]
[1762546762180,0.005,3441.9,3441.4,3.57296674]
[1762546762181,0.1448,3441.8,3441.4,3.57296674]
[1762546762487,0.005,3441.9,3441.4,0.6672]
[1762546762724,0.005,3441.9,3441.8,3.38735644]
[1762546763016,0.1498,3441.9,3441.5,0.4728]
[1762546763322,0.1448,3441.6,3441.5,0.4728]
[1762546763706,0.1448,3441.6,3441.5,0.9547]
[1762546763906,0.1448,3441.6,3441.5,3.86040971]
[1762546764309,0.005,3441.9,3441.5,0.9547]
[1762546764481,0.1498,3441.9,3441.8,0.4819]
[1762546764895,0.1498,3441.9,3441.8,0.9547]
[1762546765095,0.1498,3441.9,3441.8,3.86015644]
[1762546765584,0.005,3441.9,3441.8,3.86015644]
[1762546766421,0.005,3441.9,3441.8,4.034011]
[1762546766795,0.005,3441.9,3441.8,4.00495644]
[1762546766997,0.005,3441.9,3441.8,0.9547]
[1762546767197,0.005,3441.9,3441.8,3.86015644]
[1762546767590,0.005,3441.9,3441.8,0.9547]
[1762546769528,0.005,3441.9,3441.8,0.4819]
[1762546769690,0.005,3441.9,3441.4,0.6672]
[1762546770026,0.1733,3441.8,3441.0,0.1944]
[1762546770199,2.90560708,3441.7,3441.1,0.4728]
[1762546770399,0.005,3441.9,3441.0,0.1944]
[1762546770595,1.264712,3441.9,3441.0,0.6672]
[1762546770793,0.005,3441.9,3441.0,0.6672]
[1762546770993,2.91040124,3441.9,3441.1,3.37884137]
[1762546771194,3.63526319,3441.9,3441.1,3.37884137]
[1762546771424,0.005,3441.9,3441.8,0.4819]
[1762546771926,0.005,3441.9,3441.4,3.37852719]
[1762546772135,0.005,3441.9,3441.8,0.4878]
[1762546772314,0.005,3441.9,3441.8,3.39325644]
[1762546772516,0.005,3441.9,3441.8,0.9631]
[1762546773229,0.005,3441.9,3441.8,3.86855644]
[1762546773431,0.005,3441.9,3441.8,0.9631]
[1762546774427,0.005,3441.9,3441.8,0.4878]
[1762546774631,0.007,3441.9,3441.8,0.4878]
[1762546775331,0.007,3441.9,3441.8,0.9631]
[1762546775492,0.007,3441.9,3441.8,3.86855644]
[1762546775701,0.007,3441.9,3441.8,0.9631]
[1762546776405,0.007,3441.9,3441.8,3.86855644]
[1762546777030,0.007,3441.9,3441.8,1.1079]
[1762546777728,0.007,3441.9,3441.8,4.01335644]
[1762546778627,0.007,3441.9,3441.8,1.1079]
[1762546778797,0.007,3441.9,3441.8,4.01335644]
[1762546778991,0.007,3441.9,3441.8,0.6326]
[1762546779209,0.007,3441.9,3441.8,4.01335644]
[1762546779418,0.007,3441.9,3441.8,1.1079]
[1762546779619,0.007,3441.9,3441.8,4.01335644]
[1762546781604,0.007,3441.9,3441.8,1.0892]
[1762546781816,0.007,3441.9,3441.8,0.6326]
[1762546782019,0.007,3441.9,3441.8,3.53805644]
[1762546782219,0.007,3441.9,3441.8,3.99465644]
[1762546782630,0.007,3441.9,3441.8,0.6326]
[1762546782926,0.007,3441.9,3441.8,3.99465644]
[1762546783345,0.007,3441.9,3441.8,0.6326]
[1762546783549,0.007,3441.9,3441.1,0.4566]
[1762546783826,0.3251,3441.9,3441.3,0.1448]
[1762546784027,0.4767,3441.8,3440.6,0.4566]
[1762546784230,0.1448,3441.6,3441.0,0.1448]
[1762546784431,2.90575986,3441.5,3440.6,0.4566]
[1762546784632,0.1448,3441.2,3440.6,3.0512586]
[1762546784818,0.1803,3441.9,3441.1,0.67]
[1762546785019,0.1448,3441.4,3440.8,0.1448]
[1762546785811,0.1803,3441.9,3441.3,0.4761]
[1762546786011,0.1448,3441.6,3441.3,0.4761]
[1762546786330,0.1803,3441.9,3441.3,0.4761]
[1762546787353,0.007,3441.9,3441.4,2.90572234]
[1762546787647,0.007,3441.9,3441.1,0.1939]
[1762546787846,0.007,3441.9,3441.2,2.90594072]
[1762546787847,0.4837,3441.9,3441.2,2.90594072]
[1762546788145,0.007,3441.9,3441.4,2.90579074]
[1762546788315,0.007,3441.9,3441.5,2.90563071]
[1762546788519,0.007,3441.9,3441.8,3.38155644]
[1762546788730,0.007,3441.9,3441.8,0.4761]
[1762546788920,0.007,3441.9,3441.7,2.90551825]
[1762546789119,0.007,3441.9,3441.8,3.38155644]
[1762546789314,0.007,3441.9,3441.5,2.90570798]
[1762546789547,0.007,3441.9,3441.6,2.90561426]
[1762546789926,0.007,3441.9,3440.4,1.259712]
[1762546790137,0.007,3441.9,3440.3,6.57852602]
[1762546790138,0.1995,3441.9,3441.2,2.90596303]
[1762546790447,0.1995,3441.9,3441.3,2.90587859]
[1762546790652,0.1995,3441.9,3441.4,2.90571734]
[1762546790852,0.007,3441.9,3441.2,0.4566]
[1762546791153,0.007,3441.9,3441.7,2.90550586]
[1762546791661,0.007,3441.9,3441.8,2.90545644]
[1762546792632,0.007,3441.9,3441.3,0.4566]
[1762546793259,0.007,3441.9,3441.6,2.90562337]
[1762546793434,0.007,3441.9,3441.7,2.90552581]
[1762546794172,0.007,3441.9,3441.6,2.90559547]
[1762546794475,0.007,3441.9,3441.2,2.9058789]
[1762546794476,0.476,3441.7,3441.2,2.9058789]
[1762546794656,0.476,3441.7,3441.3,2.90582255]
[1762546794857,0.476,3441.7,3441.1,2.90601721]
[1762546795079,0.476,3441.7,3440.9,2.90613585]
[1762546795281,0.476,3441.7,3440.5,2.90652599]
[1762546795579,0.476,3441.7,3441.1,2.9059713]
[1762546795728,0.476,3441.7,3441.0,2.90609521]
[1762546795922,0.9527,3441.7,3440.7,2.90634974]
[1762546796165,0.9527,3441.7,3440.6,0.4566]
[1762546796369,0.1448,3441.5,3440.9,0.1448]
[1762546796739,0.1448,3441.5,3441.1,2.90598037]
[1762546796968,0.1448,3441.5,3441.2,2.90589152]
[1762546797261,0.1448,3441.5,3441.4,2.90579415]
[1762546797426,0.6762,3441.9,3440.9,0.4566]
[1762546797628,0.6762,3441.9,3440.4,1.259712]
[1762546797629,0.1448,3441.8,3441.7,2.90554086]
[1762546798038,0.007,3441.9,3441.8,2.90545644]
[1762546798324,0.007,3441.9,3441.8,3.38155644]
[1762546798529,0.007,3441.9,3441.8,3.98295644]
[1762546799380,0.007,3441.9,3441.8,3.83815644]
[1762546799730,1e-08,3442.6,3442.5,3.38096564]
[1762546800051,0.002,3442.7,3442.5,3.38096564]
[1762546800052,0.002,3442.7,3442.6,3.31028526]
[1762546800253,0.002,3442.7,3442.6,4.27203307]
[1762546800458,0.005,3442.9,3442.8,5.04592852]
[1762546800459,1e-08,3442.9,3442.8,5.04592852]
[1762546800644,1e-08,3442.9,3442.8,5.50252852]
[1762546802633,1e-08,3442.9,3442.8,5.09702452]
[1762546803244,1e-08,3442.9,3442.8,5.50252852]
[1762546806137,1e-08,3442.9,3442.8,2.597916]
[1762546806473,1e-08,3442.9,3442.8,0.4761]
[1762546806672,0.1988,3443.9,3442.8,0.9395]
[1762546806901,0.1988,3443.9,3443.1,2.90429598]
[1762546807038,0.1988,3443.9,3442.7,0.1426]
[1762546807241,0.1988,3443.9,3442.8,2.90461096]
[1762546807502,0.1988,3443.9,3442.7,0.1426]
[1762546807740,0.1988,3443.9,3442.3,0.4634]
[1762546808057,0.1988,3443.9,3442.4,0.4634]
[1762546808058,1.261712,3443.8,3442.4,0.4634]
[1762546808265,2.90577115,3443.8,3442.2,0.1426]
[1762546808581,0.6016,3442.3,3441.5,0.1426]
[1762546808795,0.1932,3442.2,3441.5,0.1426]
[1762546808955,0.1932,3442.2,3441.7,2.90550948]
[1762546809156,0.1938,3442.5,3441.5,0.1426]
[1762546809348,0.3386,3442.5,3442.0,0.1448]
[1762546809546,0.1448,3442.5,3442.0,0.1448]
[1762546809748,0.4695,3442.1,3442.0,0.1448]
[1762546809965,0.4695,3442.1,3441.1,0.005]
[1762546809966,2.90528762,3442.0,3441.1,0.005]
[1762546810162,0.6633,3441.2,3441.1,0.005]
[1762546810553,1.123,3441.2,3441.1,0.005]
[1762546810871,0.6633,3441.2,3441.1,0.005]
[1762546811047,0.1938,3441.8,3441.3,2.90581789]
[1762546811244,0.1938,3442.1,3441.2,0.1509]
[1762546811468,0.1938,3442.1,3441.4,2.90579415]
[1762546811675,0.1938,3442.1,3441.5,2.90565502]
[1762546811860,0.1938,3442.1,3441.2,0.1509]
[1762546811861,0.6535,3442.1,3441.1,2.91204166]
[1762546812045,0.6535,3442.1,3441.1,0.1569]
[1762546812256,0.1938,3442.1,3441.1,0.1569]
[1762546812484,0.4597,3442.0,3441.1,0.006]
[1762546812781,0.1913212,3441.9,3441.1,0.006]
[1762546812980,0.4597,3442.0,3441.1,0.006]
[1762546813148,0.4597,3441.9,3441.1,0.006]
[1762546813757,0.1938,3442.1,3441.2,0.1509]
[1762546813957,0.4597,3442.5,3441.7,2.90548523]
[1762546814180,0.1938,3442.8,3441.2,0.1509]
[1762546814385,0.1938,3442.8,3441.4,2.90574686]
[1762546814570,0.4597,3442.7,3441.3,0.4634]
[1762546814946,0.4597,3442.7,3441.9,2.90531744]
[1762546815345,0.4597,3442.7,3442.0,2.9052643]